[Event "Titled Tuesday Blitz August 15 Late 2023"]
[White "Ghazarian, Kirk"]
[Black "Martinez Alcantara, Jose Eduardo"]
[WhiteFideId "30908604"]
[BlackFideId "3805662"]
[WhiteElo "2748"]
[BlackElo "3006"]
[Result "1/2-1/2"]
[Round "7"]
[TimeControl "180+1"]
[Date "2023.08.15"]
[WhiteClock "0:00:08"]
[BlackClock "0:00:19"]
[Board "17"]

1. e4 {[%clk 0:03:00]}  c5 {[%clk 0:02:59]} 2. b3 {[%clk 0:03:01]}  b6 {[%clk 0:02:57]} 3. g3 {[%clk 0:02:59]}  Bb7 {[%clk 0:02:58]} 4. Bg2 {[%clk 0:02:59]}  d6 {[%clk 0:02:58]} 5. Bb2 {[%clk 0:03:00]}  e6 {[%clk 0:02:59]} 6. Ne2 {[%clk 0:03:00]}  Nf6 {[%clk 0:02:59]} 7. Nbc3 {[%clk 0:02:55]}  a6 {[%clk 0:02:58]} 8. a4 {[%clk 0:02:54]}  Be7 {[%clk 0:02:57]} 9. O-O {[%clk 0:02:54]}  Qc7 {[%clk 0:02:58]} 10. d3 {[%clk 0:02:48]}  O-O {[%clk 0:02:58]} 11. Re1 {[%clk 0:02:49]}  Nc6 {[%clk 0:02:58]} 12. Qd2 {[%clk 0:02:48]}  Rad8 {[%clk 0:02:57]} 13. Nd1 {[%clk 0:02:47]}  Rfe8 {[%clk 0:02:51]} 14. Ne3 {[%clk 0:02:48]}  b5 {[%clk 0:02:47]} 15. axb5 {[%clk 0:02:47]}  axb5 {[%clk 0:02:48]} 16. h3 {[%clk 0:02:46]}  Qb6 {[%clk 0:02:48]} 17. Kh2 {[%clk 0:02:45]}  Ra8 {[%clk 0:02:48]} 18. Reb1 {[%clk 0:02:36]}  Nd4 {[%clk 0:02:43]} 19. Ng4 {[%clk 0:02:12]}  Nd7 {[%clk 0:02:25]} 20. f4 {[%clk 0:02:03]}  Bf8 {[%clk 0:02:12]} 21. Ne3 {[%clk 0:01:48]}  Nxe2 {[%clk 0:02:03]} 22. Qxe2 {[%clk 0:01:48]}  d5 {[%clk 0:02:04]} 23. e5 {[%clk 0:01:46]}  d4 {[%clk 0:02:03]} 24. Ng4 {[%clk 0:01:40]}  Qc7 {[%clk 0:02:02]} 25. Bxb7 {[%clk 0:01:36]}  Qxb7 {[%clk 0:02:02]} 26. Nf2 {[%clk 0:01:36]}  Nb6 {[%clk 0:02:01]} 27. Bc1 {[%clk 0:01:29]}  Nd5 {[%clk 0:02:00]} 28. Bd2 {[%clk 0:01:29]}  Be7 {[%clk 0:01:56]} 29. Ne4 {[%clk 0:01:28]}  Rxa1 {[%clk 0:01:55]} 30. Rxa1 {[%clk 0:01:28]}  Ra8 {[%clk 0:01:56]} 31. Qe1 {[%clk 0:01:26]}  h6 {[%clk 0:01:52]} 32. Qb1 {[%clk 0:01:18]}  Ra6 {[%clk 0:01:43]} 33. Rxa6 {[%clk 0:01:01]}  Qxa6 {[%clk 0:01:44]} 34. Qb2 {[%clk 0:01:01]}  Qa7 {[%clk 0:01:28]} 35. Qb1 {[%clk 0:01:01]}  Qa3 {[%clk 0:01:23]} 36. Bc1 {[%clk 0:00:58]}  Qa6 {[%clk 0:01:23]} 37. Bd2 {[%clk 0:00:56]}  Qc6 {[%clk 0:01:19]} 38. Qa1 {[%clk 0:00:54]}  Ne3 {[%clk 0:01:19]} 39. Bxe3 {[%clk 0:00:51]}  dxe3 {[%clk 0:01:20]} 40. Qe1 {[%clk 0:00:51]}  c4 {[%clk 0:01:20]} 41. bxc4 {[%clk 0:00:49]}  bxc4 {[%clk 0:01:21]} 42. Qxe3 {[%clk 0:00:48]}  cxd3 {[%clk 0:01:22]} 43. Qxd3 {[%clk 0:00:44]}  Qc7 {[%clk 0:01:22]} 44. Nd6 {[%clk 0:00:41]}  Qc5 {[%clk 0:01:21]} 45. Ne4 {[%clk 0:00:40]}  Qb4 {[%clk 0:01:19]} 46. Kg2 {[%clk 0:00:35]}  g5 {[%clk 0:01:19]} 47. fxg5 {[%clk 0:00:32]}  hxg5 {[%clk 0:01:20]} 48. Nf6+ {[%clk 0:00:32]}  Kf8 {[%clk 0:01:20]} 49. Nd7+ {[%clk 0:00:27]}  Kg7 {[%clk 0:01:20]} 50. Nf6 {[%clk 0:00:18]}  Bxf6 {[%clk 0:01:20]} 51. exf6+ {[%clk 0:00:19]}  Kxf6 {[%clk 0:01:21]} 52. c4 {[%clk 0:00:19]}  Ke7 {[%clk 0:01:16]} 53. h4 {[%clk 0:00:16]}  gxh4 {[%clk 0:01:14]} 54. gxh4 {[%clk 0:00:17]}  Qc5 {[%clk 0:01:14]} 55. Kh3 {[%clk 0:00:16]}  Qf2 {[%clk 0:01:11]} 56. Qa3+ {[%clk 0:00:16]}  Kf6 {[%clk 0:01:08]} 57. Qc3+ {[%clk 0:00:15]}  e5 {[%clk 0:01:08]} 58. Qd3 {[%clk 0:00:12]}  Ke7 {[%clk 0:01:02]} 59. Qa3+ {[%clk 0:00:12]}  Ke6 {[%clk 0:00:56]} 60. Qd3 {[%clk 0:00:12]}  Ke7 {[%clk 0:00:43]} 61. Qa3+ {[%clk 0:00:12]}  Kf6 {[%clk 0:00:38]} 62. Qd3 {[%clk 0:00:12]}  Qg1 {[%clk 0:00:34]} 63. Qd6+ {[%clk 0:00:09]}  Kf5 {[%clk 0:00:34]} 64. Qd7+ {[%clk 0:00:09]}  Kf6 {[%clk 0:00:33]} 65. Qd6+ {[%clk 0:00:08]}  Kf5 {[%clk 0:00:33]} 66. Qd7+ {[%clk 0:00:08]}  Kf6 {[%clk 0:00:19]} 67. Qd6+ {[%clk 0:00:08]} 1/2-1/2


[Site "https://www.chess.com"]

[Event "Titled Tuesday Blitz August 15 Late 2023"]
[White "Rastbod, Ali"]
[Black "Rasulov, Vugar"]
[WhiteFideId "12567477"]
[BlackFideId "13402390"]
[WhiteElo "2676"]
[BlackElo "2886"]
[Result "0-1"]
[Round "7"]
[TimeControl "180+1"]
[Date "2023.08.15"]
[WhiteClock "0:00:06"]
[BlackClock "0:01:23"]
[Board "19"]

1. d4 {[%clk 0:03:00]}  c5 {[%clk 0:03:00]} 2. d5 {[%clk 0:02:59]}  d6 {[%clk 0:03:01]} 3. e4 {[%clk 0:02:57]}  e5 {[%clk 0:03:01]} 4. Nd2 {[%clk 0:02:56]}  a6 {[%clk 0:02:58]} 5. a4 {[%clk 0:02:55]}  f5 {[%clk 0:02:59]} 6. Bd3 {[%clk 0:02:49]}  Nf6 {[%clk 0:02:49]} 7. exf5 {[%clk 0:02:47]}  Nxd5 {[%clk 0:02:39]} 8. Qh5+ {[%clk 0:02:43]}  Ke7 {[%clk 0:02:38]} 9. Bc4 {[%clk 0:02:11]}  g6 {[%clk 0:02:38]} 10. Qh4+ {[%clk 0:01:58]}  Nf6 {[%clk 0:02:30]} 11. Ne4 {[%clk 0:01:58]}  Bg7 {[%clk 0:02:28]} 12. Bg5 {[%clk 0:01:59]}  Qf8 {[%clk 0:02:13]} 13. O-O-O {[%clk 0:01:26]}  Bxf5 {[%clk 0:02:00]} 14. Rxd6 {[%clk 0:01:16]}  Nd7 {[%clk 0:01:50]} 15. Nf3 {[%clk 0:00:43]}  h6 {[%clk 0:01:50]} 16. Rxd7+ {[%clk 0:00:42]}  Bxd7 {[%clk 0:01:40]} 17. Nxe5 {[%clk 0:00:34]}  hxg5 {[%clk 0:01:38]} 18. Nxg6+ {[%clk 0:00:21]}  Kd8 {[%clk 0:01:38]} 19. Qg3 {[%clk 0:00:20]}  Nxe4 {[%clk 0:01:33]} 20. Qd3 {[%clk 0:00:16]}  Qf6 {[%clk 0:01:28]} 21. Qxe4 {[%clk 0:00:11]}  Qxb2+ {[%clk 0:01:29]} 22. Kd2 {[%clk 0:00:06]}  Re8 {[%clk 0:01:23]} 0-1


[Site "https://www.chess.com"]

[Event "Titled Tuesday Blitz August 15 Late 2023"]
[White "Hoang, Thi Bao Tram"]
[Black "Grischuk, Alexander"]
[WhiteFideId "12401102"]
[BlackFideId "4126025"]
[WhiteElo "2679"]
[BlackElo "3028"]
[Result "0-1"]
[Round "7"]
[TimeControl "180+1"]
[Date "2023.08.15"]
[WhiteClock "0:00:00"]
[BlackClock "0:00:01"]
[Board "24"]

1. Nf3 {[%clk 0:03:00]}  g6 {[%clk 0:02:53]} 2. g3 {[%clk 0:03:00]}  Bg7 {[%clk 0:02:53]} 3. Bg2 {[%clk 0:03:01]}  c5 {[%clk 0:02:54]} 4. O-O {[%clk 0:03:00]}  Nc6 {[%clk 0:02:54]} 5. c3 {[%clk 0:03:00]}  e5 {[%clk 0:02:54]} 6. d3 {[%clk 0:02:48]}  Nge7 {[%clk 0:02:53]} 7. Be3 {[%clk 0:02:46]}  d6 {[%clk 0:02:46]} 8. Qc1 {[%clk 0:02:46]}  h6 {[%clk 0:02:23]} 9. Na3 {[%clk 0:02:45]}  Be6 {[%clk 0:02:21]} 10. Nc2 {[%clk 0:02:44]}  Rc8 {[%clk 0:02:21]} 11. Rd1 {[%clk 0:02:36]}  Qd7 {[%clk 0:02:18]} 12. Bd2 {[%clk 0:02:05]}  f5 {[%clk 0:01:54]} 13. e4 {[%clk 0:02:03]}  g5 {[%clk 0:01:53]} 14. exf5 {[%clk 0:01:20]}  Bxf5 {[%clk 0:01:53]} 15. Be3 {[%clk 0:01:20]}  O-O {[%clk 0:01:49]} 16. Qd2 {[%clk 0:01:18]}  b6 {[%clk 0:01:46]} 17. Rac1 {[%clk 0:00:59]}  d5 {[%clk 0:01:43]} 18. d4 {[%clk 0:00:57]}  e4 {[%clk 0:01:26]} 19. Nfe1 {[%clk 0:00:48]}  c4 {[%clk 0:01:11]} 20. f3 {[%clk 0:00:48]}  exf3 {[%clk 0:01:11]} 21. Nxf3 {[%clk 0:00:49]}  Be4 {[%clk 0:01:11]} 22. Rf1 {[%clk 0:00:49]}  Nf5 {[%clk 0:01:11]} 23. Rce1 {[%clk 0:00:47]}  Rce8 {[%clk 0:01:10]} 24. Bf2 {[%clk 0:00:40]}  Nd6 {[%clk 0:00:56]} 25. Be3 {[%clk 0:00:36]}  Qg4 {[%clk 0:00:32]} 26. Qd1 {[%clk 0:00:26]}  Qh5 {[%clk 0:00:24]} 27. Bc1 {[%clk 0:00:20]}  Re7 {[%clk 0:00:21]} 28. Ne3 {[%clk 0:00:20]}  Ref7 {[%clk 0:00:15]} 29. Nd2 {[%clk 0:00:17]}  Qxd1 {[%clk 0:00:12]} 30. Rxd1 {[%clk 0:00:17]}  Bxg2 {[%clk 0:00:11]} 31. Rxf7 {[%clk 0:00:17]}  Rxf7 {[%clk 0:00:11]} 32. Kxg2 {[%clk 0:00:18]}  Ne7 {[%clk 0:00:11]} 33. Rf1 {[%clk 0:00:17]}  Rxf1 {[%clk 0:00:11]} 34. Kxf1 {[%clk 0:00:17]}  Kf7 {[%clk 0:00:12]} 35. Kg2 {[%clk 0:00:17]}  Ke6 {[%clk 0:00:12]} 36. b3 {[%clk 0:00:17]}  Nef5 {[%clk 0:00:07]} 37. Nxf5 {[%clk 0:00:16]}  Kxf5 {[%clk 0:00:08]} 38. bxc4 {[%clk 0:00:16]}  Nxc4 {[%clk 0:00:06]} 39. Nxc4 {[%clk 0:00:15]}  dxc4 {[%clk 0:00:07]} 40. Kf3 {[%clk 0:00:15]}  g4+ {[%clk 0:00:07]} 41. Ke2 {[%clk 0:00:15]}  Ke4 {[%clk 0:00:07]} 42. Ba3 {[%clk 0:00:15]}  h5 {[%clk 0:00:05]} 43. Bd6 {[%clk 0:00:15]}  Bf6 {[%clk 0:00:04]} 44. Bb8 {[%clk 0:00:13]}  a6 {[%clk 0:00:04]} 45. Bd6 {[%clk 0:00:13]}  Bg5 {[%clk 0:00:04]} 46. a4 {[%clk 0:00:12]}  Be3 {[%clk 0:00:02]} 47. Bc7 {[%clk 0:00:11]}  Bg1 {[%clk 0:00:02]} 48. Bxb6 {[%clk 0:00:11]}  Bxh2 {[%clk 0:00:02]} 49. Kf2 {[%clk 0:00:10]}  h4 {[%clk 0:00:01]} 50. gxh4 {[%clk 0:00:10]}  Bf4 {[%clk 0:00:02]} 51. h5 {[%clk 0:00:09]}  Bd2 {[%clk 0:00:02]} 52. Ba5 {[%clk 0:00:09]}  Kf4 {[%clk 0:00:02]} 53. Bc7+ {[%clk 0:00:09]}  Ke4 {[%clk 0:00:02]} 54. Ba5 {[%clk 0:00:08]}  Bf4 {[%clk 0:00:02]} 55. Kg2 {[%clk 0:00:07]}  Bd2 {[%clk 0:00:01]} 56. Kg3 {[%clk 0:00:07]}  Kf5 {[%clk 0:00:02]} 57. d5 {[%clk 0:00:07]}  Be1+ {[%clk 0:00:02]} 58. Kg2 {[%clk 0:00:07]}  Bd2 {[%clk 0:00:02]} 59. d6 {[%clk 0:00:07]}  Ke6 {[%clk 0:00:03]} 60. Bb4 {[%clk 0:00:07]}  Bf4 {[%clk 0:00:02]} 61. Kf2 {[%clk 0:00:06]}  Kd7 {[%clk 0:00:02]} 62. Kg2 {[%clk 0:00:05]}  Ke6 {[%clk 0:00:03]} 63. a5 {[%clk 0:00:06]}  Kd7 {[%clk 0:00:03]} 64. Kf2 {[%clk 0:00:06]}  Ke6 {[%clk 0:00:03]} 65. Kg2 {[%clk 0:00:06]}  Kd7 {[%clk 0:00:04]} 66. Bc5 {[%clk 0:00:07]}  Ke6 {[%clk 0:00:04]} 67. Kf2 {[%clk 0:00:07]}  Kd7 {[%clk 0:00:05]} 68. Be3 {[%clk 0:00:07]}  Be5 {[%clk 0:00:04]} 69. h6 {[%clk 0:00:06]}  Bxc3 {[%clk 0:00:04]} 70. h7 {[%clk 0:00:05]}  Kxd6 {[%clk 0:00:04]} 71. Kg3 {[%clk 0:00:06]}  Kd5 {[%clk 0:00:04]} 72. Kxg4 {[%clk 0:00:06]}  Ke4 {[%clk 0:00:05]} 73. Bh6 {[%clk 0:00:05]}  Bh8 {[%clk 0:00:05]} 74. Kg5 {[%clk 0:00:05]}  c3 {[%clk 0:00:05]} 75. Kg6 {[%clk 0:00:06]}  c2 {[%clk 0:00:06]} 76. Kf7 {[%clk 0:00:04]}  Kd3 {[%clk 0:00:05]} 77. Ke6 {[%clk 0:00:02]}  Kc4 {[%clk 0:00:05]} 78. Kd6 {[%clk 0:00:02]}  Kb5 {[%clk 0:00:04]} 79. Bd2 {[%clk 0:00:02]}  Bg7 {[%clk 0:00:02]} 80. Kd5 {[%clk 0:00:02]}  Bh8 {[%clk 0:00:02]} 81. Ke4 {[%clk 0:00:02]}  Kc4 {[%clk 0:00:02]} 82. Bc1 {[%clk 0:00:02]}  Bg7 {[%clk 0:00:02]} 83. Kf5 {[%clk 0:00:02]}  Bh8 {[%clk 0:00:02]} 84. Ke6 {[%clk 0:00:02]}  Kb5 {[%clk 0:00:02]} 85. Kd5 {[%clk 0:00:02]}  Kxa5 {[%clk 0:00:01]} 86. Kc4 {[%clk 0:00:03]}  Ka4 {[%clk 0:00:01]} 87. Kd3 {[%clk 0:00:03]}  Kb3 {[%clk 0:00:01]} 88. Be3 {[%clk 0:00:02]}  a5 {[%clk 0:00:01]} 89. Kd2 {[%clk 0:00:00]}  a4 {[%clk 0:00:01]} 0-1


[Site "https://www.chess.com"]

[Event "Titled Tuesday Blitz August 15 Late 2023"]
[White "Paszewski, Mateusz"]
[Black "Zierk, Steven"]
[WhiteFideId "1141058"]
[BlackFideId "2034255"]
[WhiteElo "2588"]
[BlackElo "2858"]
[Result "0-1"]
[Round "7"]
[TimeControl "180+1"]
[Date "2023.08.15"]
[WhiteClock "0:00:02"]
[BlackClock "0:00:13"]
[Board "30"]

1. c4 {[%clk 0:03:00]}  e5 {[%clk 0:02:57]} 2. Nc3 {[%clk 0:02:56]}  Nf6 {[%clk 0:02:57]} 3. Nf3 {[%clk 0:02:55]}  Nc6 {[%clk 0:02:56]} 4. e4 {[%clk 0:02:55]}  Bb4 {[%clk 0:02:55]} 5. d3 {[%clk 0:02:47]}  d6 {[%clk 0:02:51]} 6. a3 {[%clk 0:02:47]}  Bxc3+ {[%clk 0:02:51]} 7. bxc3 {[%clk 0:02:46]}  O-O {[%clk 0:02:46]} 8. Be2 {[%clk 0:02:39]}  a6 {[%clk 0:02:39]} 9. a4 {[%clk 0:02:33]}  Ne8 {[%clk 0:02:04]} 10. O-O {[%clk 0:02:29]}  f5 {[%clk 0:02:03]} 11. exf5 {[%clk 0:02:29]}  Bxf5 {[%clk 0:02:02]} 12. Ne1 {[%clk 0:02:30]}  Nf6 {[%clk 0:01:55]} 13. Nc2 {[%clk 0:02:26]}  d5 {[%clk 0:01:50]} 14. Ne3 {[%clk 0:02:17]}  Be6 {[%clk 0:01:49]} 15. cxd5 {[%clk 0:02:17]}  Nxd5 {[%clk 0:01:48]} 16. Nxd5 {[%clk 0:02:09]}  Bxd5 {[%clk 0:01:47]} 17. Be3 {[%clk 0:02:06]}  Qd6 {[%clk 0:01:26]} 18. Rb1 {[%clk 0:02:02]}  Ne7 {[%clk 0:01:19]} 19. c4 {[%clk 0:01:52]}  Bc6 {[%clk 0:01:19]} 20. Qb3 {[%clk 0:01:50]}  Qg6 {[%clk 0:01:12]} 21. f3 {[%clk 0:01:40]}  Nf5 {[%clk 0:01:10]} 22. Bf2 {[%clk 0:01:37]}  Rad8 {[%clk 0:01:05]} 23. a5 {[%clk 0:01:21]}  Nd4 {[%clk 0:01:00]} 24. Bxd4 {[%clk 0:01:19]}  exd4 {[%clk 0:01:01]} 25. Rbe1 {[%clk 0:01:13]}  Qg5 {[%clk 0:00:56]} 26. Qa2 {[%clk 0:00:45]}  Rfe8 {[%clk 0:00:53]} 27. Bd1 {[%clk 0:00:35]}  Re3 {[%clk 0:00:51]} 28. Ba4 {[%clk 0:00:13]}  Bxf3 {[%clk 0:00:20]} 29. Qf2 {[%clk 0:00:11]}  Rf8 {[%clk 0:00:15]} 30. Kh1 {[%clk 0:00:07]}  Rxe1 {[%clk 0:00:13]} 31. Rxe1 {[%clk 0:00:04]}  Bc6 {[%clk 0:00:14]} 32. Qe2 {[%clk 0:00:03]}  Bxa4 {[%clk 0:00:13]} 33. Qe6+ {[%clk 0:00:03]}  Kh8 {[%clk 0:00:13]} 34. Qe7 {[%clk 0:00:01]}  Qxe7 {[%clk 0:00:13]} 35. Rxe7 {[%clk 0:00:02]}  Rf1# {[%clk 0:00:13]} 0-1


[Site "https://www.chess.com"]

[Event "Titled Tuesday Blitz August 15 Late 2023"]
[White "Schekachikhin, Maksim"]
[Black "Remizov, Yaroslav"]
[WhiteFideId "24177830"]
[BlackFideId "34134015"]
[WhiteElo "2573"]
[BlackElo "2842"]
[Result "1-0"]
[Round "7"]
[TimeControl "180+1"]
[Date "2023.08.15"]
[WhiteClock "0:00:13"]
[BlackClock "0:00:03"]
[Board "31"]

1. d4 {[%clk 0:02:56]}  Nf6 {[%clk 0:02:58]} 2. Nf3 {[%clk 0:02:56]}  d5 {[%clk 0:02:57]} 3. e3 {[%clk 0:02:57]}  Bf5 {[%clk 0:02:44]} 4. c4 {[%clk 0:02:53]}  c6 {[%clk 0:02:41]} 5. Bd3 {[%clk 0:02:53]}  Bxd3 {[%clk 0:02:41]} 6. Qxd3 {[%clk 0:02:54]}  e6 {[%clk 0:02:41]} 7. O-O {[%clk 0:02:54]}  Be7 {[%clk 0:02:41]} 8. Nc3 {[%clk 0:02:55]}  O-O {[%clk 0:02:41]} 9. e4 {[%clk 0:02:55]}  dxe4 {[%clk 0:02:41]} 10. Nxe4 {[%clk 0:02:56]}  Nbd7 {[%clk 0:02:41]} 11. Rd1 {[%clk 0:02:54]}  Nxe4 {[%clk 0:02:39]} 12. Qxe4 {[%clk 0:02:54]}  Nf6 {[%clk 0:02:40]} 13. Qh4 {[%clk 0:02:48]}  a5 {[%clk 0:02:35]} 14. Bg5 {[%clk 0:02:35]}  a4 {[%clk 0:02:31]} 15. Rd2 {[%clk 0:02:32]}  Ra5 {[%clk 0:02:29]} 16. Rad1 {[%clk 0:02:28]}  h6 {[%clk 0:02:29]} 17. Bxf6 {[%clk 0:02:27]}  Bxf6 {[%clk 0:02:28]} 18. Qe4 {[%clk 0:02:28]}  Qb6 {[%clk 0:02:26]} 19. g3 {[%clk 0:02:22]}  Qb4 {[%clk 0:02:20]} 20. Ne5 {[%clk 0:02:18]}  Rd8 {[%clk 0:02:05]} 21. Ng4 {[%clk 0:02:07]}  Qxc4 {[%clk 0:01:47]} 22. Nxf6+ {[%clk 0:02:07]}  gxf6 {[%clk 0:01:48]} 23. Qf4 {[%clk 0:02:08]}  Kg7 {[%clk 0:01:46]} 24. Qc7 {[%clk 0:02:08]}  Rad5 {[%clk 0:01:42]} 25. Qxb7 {[%clk 0:02:08]}  c5 {[%clk 0:01:39]} 26. b3 {[%clk 0:02:04]}  axb3 {[%clk 0:01:35]} 27. axb3 {[%clk 0:02:04]}  Qc3 {[%clk 0:01:31]} 28. Rd3 {[%clk 0:02:02]}  Qc2 {[%clk 0:01:31]} 29. R1d2 {[%clk 0:01:52]}  Qc1+ {[%clk 0:01:21]} 30. Rd1 {[%clk 0:01:52]}  Qg5 {[%clk 0:01:21]} 31. Qb6 {[%clk 0:01:38]}  R8d6 {[%clk 0:01:19]} 32. Qa7 {[%clk 0:01:34]}  Rd7 {[%clk 0:01:19]} 33. Qa1 {[%clk 0:01:18]}  e5 {[%clk 0:01:17]} 34. Qc3 {[%clk 0:01:10]}  cxd4 {[%clk 0:01:12]} 35. Qc4 {[%clk 0:01:10]}  Qf5 {[%clk 0:00:59]} 36. b4 {[%clk 0:01:10]}  Qe6 {[%clk 0:00:55]} 37. b5 {[%clk 0:01:06]}  Qb6 {[%clk 0:00:54]} 38. Rb3 {[%clk 0:01:00]}  e4 {[%clk 0:00:47]} 39. Qe2 {[%clk 0:01:00]}  Qe6 {[%clk 0:00:47]} 40. Rb4 {[%clk 0:00:58]}  f5 {[%clk 0:00:38]} 41. b6 {[%clk 0:00:58]}  d3 {[%clk 0:00:33]} 42. Qb2+ {[%clk 0:00:58]}  Kh7 {[%clk 0:00:17]} 43. b7 {[%clk 0:00:58]}  Rxb7 {[%clk 0:00:16]} 44. Rxb7 {[%clk 0:00:59]}  e3 {[%clk 0:00:17]} 45. fxe3 {[%clk 0:00:57]}  Qxe3+ {[%clk 0:00:17]} 46. Qf2 {[%clk 0:00:58]}  Qe4 {[%clk 0:00:17]} 47. Rb2 {[%clk 0:00:57]}  Re5 {[%clk 0:00:13]} 48. Rbd2 {[%clk 0:00:56]}  Rd5 {[%clk 0:00:12]} 49. Re1 {[%clk 0:00:56]}  Qb4 {[%clk 0:00:12]} 50. Qe3 {[%clk 0:00:51]}  Kg6 {[%clk 0:00:10]} 51. Red1 {[%clk 0:00:51]}  Rd6 {[%clk 0:00:09]} 52. Rxd3 {[%clk 0:00:50]}  Re6 {[%clk 0:00:10]} 53. Qf2 {[%clk 0:00:48]}  Qg4 {[%clk 0:00:10]} 54. Qf3 {[%clk 0:00:45]}  Qg5 {[%clk 0:00:10]} 55. Rd6 {[%clk 0:00:44]}  Qe7 {[%clk 0:00:10]} 56. Rxe6+ {[%clk 0:00:44]}  fxe6 {[%clk 0:00:11]} 57. Qf4 {[%clk 0:00:39]}  Qc5+ {[%clk 0:00:11]} 58. Qf2 {[%clk 0:00:39]}  Qc6 {[%clk 0:00:11]} 59. Qe3 {[%clk 0:00:38]}  Kf7 {[%clk 0:00:06]} 60. Re1 {[%clk 0:00:35]}  h5 {[%clk 0:00:04]} 61. Qa7+ {[%clk 0:00:29]}  Kg6 {[%clk 0:00:04]} 62. Qd4 {[%clk 0:00:28]}  Qa6 {[%clk 0:00:03]} 63. h4 {[%clk 0:00:22]}  Qc6 {[%clk 0:00:03]} 64. Qf4 {[%clk 0:00:20]}  Kf7 {[%clk 0:00:03]} 65. Qg5 {[%clk 0:00:19]}  Qc5+ {[%clk 0:00:03]} 66. Qe3 {[%clk 0:00:19]}  Qc6 {[%clk 0:00:03]} 67. Kh2 {[%clk 0:00:19]}  Qc2+ {[%clk 0:00:02]} 68. Re2 {[%clk 0:00:19]}  Qc6 {[%clk 0:00:02]} 69. Qf4 {[%clk 0:00:18]}  Qd5 {[%clk 0:00:02]} 70. Rf2 {[%clk 0:00:17]}  Qc5 {[%clk 0:00:02]} 71. Kg2 {[%clk 0:00:17]}  Qc6+ {[%clk 0:00:02]} 72. Qf3 {[%clk 0:00:17]}  Qc5 {[%clk 0:00:03]} 73. Qxh5+ {[%clk 0:00:17]}  Ke7 {[%clk 0:00:03]} 74. Qg5+ {[%clk 0:00:18]}  Kf7 {[%clk 0:00:04]} 75. h5 {[%clk 0:00:18]}  Qd5+ {[%clk 0:00:04]} 76. Kh2 {[%clk 0:00:18]}  Qc5 {[%clk 0:00:04]} 77. Re2 {[%clk 0:00:14]}  Qc3 {[%clk 0:00:03]} 78. Qg6+ {[%clk 0:00:14]}  Ke7 {[%clk 0:00:03]} 79. Qxe6+ {[%clk 0:00:14]}  Kf8 {[%clk 0:00:02]} 80. Qe8+ {[%clk 0:00:14]}  Kg7 {[%clk 0:00:03]} 81. Re7+ {[%clk 0:00:14]}  Kf6 {[%clk 0:00:03]} 82. Qf7+ {[%clk 0:00:13]}  Kg5 {[%clk 0:00:03]} 83. Qg6# {[%clk 0:00:13]} 1-0


[Site "https://www.chess.com"]

[Event "Titled Tuesday Blitz August 15 Late 2023"]
[White "Klukin, Kirill"]
[Black "Kochiev, Ivan"]
[WhiteFideId "24199273"]
[BlackFideId "2917890"]
[WhiteElo "2822"]
[BlackElo "2585"]
[Result "1-0"]
[Round "7"]
[TimeControl "180+1"]
[Date "2023.08.15"]
[WhiteClock "0:00:12"]
[BlackClock "0:00:03"]
[Board "32"]

1. f4 {[%clk 0:03:00]}  Nf6 {[%clk 0:02:57]} 2. Nf3 {[%clk 0:03:01]}  d5 {[%clk 0:02:56]} 3. g3 {[%clk 0:03:01]}  Bf5 {[%clk 0:02:56]} 4. Bg2 {[%clk 0:03:01]}  h6 {[%clk 0:02:57]} 5. O-O {[%clk 0:03:01]}  e6 {[%clk 0:02:57]} 6. d3 {[%clk 0:03:01]}  c5 {[%clk 0:02:57]} 7. Nc3 {[%clk 0:03:01]}  Nc6 {[%clk 0:02:57]} 8. e3 {[%clk 0:02:55]}  Be7 {[%clk 0:02:55]} 9. Qe2 {[%clk 0:02:53]}  O-O {[%clk 0:02:55]} 10. e4 {[%clk 0:02:49]}  Bg4 {[%clk 0:02:40]} 11. Qf2 {[%clk 0:02:39]}  Bxf3 {[%clk 0:02:18]} 12. Bxf3 {[%clk 0:02:37]}  Nd4 {[%clk 0:02:10]} 13. e5 {[%clk 0:02:26]}  Nxf3+ {[%clk 0:01:59]} 14. Qxf3 {[%clk 0:02:27]}  Nd7 {[%clk 0:02:00]} 15. Ne2 {[%clk 0:02:14]}  b5 {[%clk 0:01:49]} 16. c3 {[%clk 0:02:01]}  f6 {[%clk 0:01:45]} 17. exf6 {[%clk 0:01:56]}  Nxf6 {[%clk 0:01:46]} 18. Be3 {[%clk 0:01:50]}  c4 {[%clk 0:01:33]} 19. Nd4 {[%clk 0:01:31]}  Qd7 {[%clk 0:01:24]} 20. f5 {[%clk 0:01:31]}  e5 {[%clk 0:01:07]} 21. Ne6 {[%clk 0:01:26]}  cxd3 {[%clk 0:01:07]} 22. Nxf8 {[%clk 0:01:25]}  Rxf8 {[%clk 0:01:07]} 23. Rad1 {[%clk 0:01:19]}  b4 {[%clk 0:01:01]} 24. Qg2 {[%clk 0:00:54]}  Qb5 {[%clk 0:00:31]} 25. g4 {[%clk 0:00:47]}  e4 {[%clk 0:00:13]} 26. Kh1 {[%clk 0:00:43]}  Qa5 {[%clk 0:00:09]} 27. Bd4 {[%clk 0:00:38]}  Nh7 {[%clk 0:00:05]} 28. Qg3 {[%clk 0:00:24]}  Bf6 {[%clk 0:00:04]} 29. Qd6 {[%clk 0:00:22]}  Bxd4 {[%clk 0:00:03]} 30. cxd4 {[%clk 0:00:23]}  Nf6 {[%clk 0:00:02]} 31. Rg1 {[%clk 0:00:22]}  Qb5 {[%clk 0:00:01]} 32. g5 {[%clk 0:00:19]}  hxg5 {[%clk 0:00:02]} 33. Rxg5 {[%clk 0:00:20]}  e3 {[%clk 0:00:03]} 34. Rdg1 {[%clk 0:00:17]}  Ne8 {[%clk 0:00:03]} 35. Qe5 {[%clk 0:00:16]}  Rf7 {[%clk 0:00:03]} 36. Qxe3 {[%clk 0:00:13]}  a5 {[%clk 0:00:03]} 37. b3 {[%clk 0:00:13]}  Kf8 {[%clk 0:00:02]} 38. Rh5 {[%clk 0:00:12]}  Kg8 {[%clk 0:00:02]} 39. Qh3 {[%clk 0:00:12]}  Kf8 {[%clk 0:00:02]} 40. Qh4 {[%clk 0:00:13]}  Nf6 {[%clk 0:00:02]} 41. Rh8+ {[%clk 0:00:12]}  Ng8 {[%clk 0:00:03]} 42. Qd8+ {[%clk 0:00:11]}  Qe8 {[%clk 0:00:03]} 43. Rxg8+ {[%clk 0:00:12]}  Kxg8 {[%clk 0:00:03]} 44. Qxe8+ {[%clk 0:00:12]} 1-0


[Site "https://www.chess.com"]

[Event "Titled Tuesday Blitz August 15 Late 2023"]
[White "Soderstrom, Adrian"]
[Black "Kuzmicz, Krystian"]
[WhiteFideId "1745786"]
[BlackFideId "1119125"]
[WhiteElo "2570"]
[BlackElo "2799"]
[Result "1-0"]
[Round "7"]
[TimeControl "180+1"]
[Date "2023.08.15"]
[WhiteClock "0:02:00"]
[BlackClock "0:00:46"]
[Board "33"]

1. h4 {[%clk 0:03:00]}  d5 {[%clk 0:02:52]} 2. d4 {[%clk 0:03:01]}  c5 {[%clk 0:02:48]} 3. e4 {[%clk 0:03:01]}  dxe4 {[%clk 0:02:45]} 4. d5 {[%clk 0:03:01]}  Nf6 {[%clk 0:02:45]} 5. Nc3 {[%clk 0:03:01]}  a6 {[%clk 0:02:45]} 6. a4 {[%clk 0:03:01]}  e6 {[%clk 0:02:41]} 7. Bc4 {[%clk 0:03:00]}  exd5 {[%clk 0:02:39]} 8. Nxd5 {[%clk 0:03:01]}  Nc6 {[%clk 0:02:36]} 9. Bg5 {[%clk 0:02:57]}  Be7 {[%clk 0:02:35]} 10. Nxe7 {[%clk 0:02:57]}  Qxe7 {[%clk 0:02:34]} 11. Ne2 {[%clk 0:02:56]}  Bg4 {[%clk 0:02:29]} 12. Qc1 {[%clk 0:02:43]}  Ne5 {[%clk 0:02:27]} 13. Bd5 {[%clk 0:02:35]}  Nd3+ {[%clk 0:02:20]} 14. cxd3 {[%clk 0:02:32]}  exd3 {[%clk 0:02:20]} 15. O-O {[%clk 0:02:26]}  Bxe2 {[%clk 0:02:10]} 16. Bxf6 {[%clk 0:02:20]}  Qxf6 {[%clk 0:02:04]} 17. Qxc5 {[%clk 0:02:19]}  Rd8 {[%clk 0:01:13]} 18. Bxb7 {[%clk 0:02:15]}  Bxf1 {[%clk 0:01:04]} 19. Bc6+ {[%clk 0:02:10]}  Rd7 {[%clk 0:01:03]} 20. Rxf1 {[%clk 0:02:01]}  Qd6 {[%clk 0:00:46]} 21. Qxd6 {[%clk 0:02:00]} 1-0


[Site "https://www.chess.com"]